Cogmind - Beta 17 *** ADVENTURER MODE // 2026.08.18 @ 23:13:56 Player: Tuja Result: Destroyed by G-50 Soldier with Heavy Laser Performance ------------- Evolutions (5) 2500 Regions Visited (12) 2400 Robots Destroyed (70) 350 Value Destroyed (2715) 2715 Prototype IDs (225) 4500 Alien Tech Used (0) 0 Bonus (14691) 14691 TOTAL SCORE: 27156 Bonus ------- Follower Combat Kills 191 Prayed to X0-1V1 5000 Major X0-1V1 Interference 2400 Subatomizer Sterilization 3000 Registered with UFD 300 Met Optimus in HQ 500 Met Data Miner 300 Used Data Conduit 3000 Cogmind --------- Core Integrity 0/650 Matter 290/300 Energy 650/650 System Corruption 0% Temperature Cool (9) Movement Rolling (85) Ox1 Location -5/Extension Parts ------- > --- POWER (1) -------- (None) > --- PROPULSION (2) --- Wheel > --- UTILITY (12) ----- Energy Well (fused) Advanced Signal Interpreter Advanced Terrain Scan Processor Melee Analysis Suite Advanced Melee Analysis Suite ECM Suite (fused) X0-1V1's Piety Tracker > --- WEAPON (5) ------- Companion Sword (fused) > --- INVENTORY (5) ---- Large Storage Unit Experimental Terrain Scanner Magnetic Acceleration Cannon Plasma Cutter Peak State ------------ > --- POWER ------------ Angular Momentum Engine > --- PROPULSION ------- Overtuned Huge Scrapsphere > --- UTILITY ---------- Scrap Suit Large Storage Unit Energy Well Advanced Terrain Scanner Advanced Terrain Scan Processor ECM Suite Experimental Weapon Shielding Force Field X0-1V1's Piety Tracker > --- WEAPON ----------- Companion Sword Lance > --- INVENTORY -------- Overtuned Scrapsphere Compact Battery Improved Sensor Array Improved Signal Interpreter Experimental Terrain Scanner Advanced Melee Analysis Suite Cloaking Device Insulated Plating Drone Bay Fusion Bomb Launcher Improved Datajack Plasma Cutter Thunder Hammer Segregator Trap Vortex Trap [Rating: 83] Favorites ----------- Power Light Ion Engine Engine Light Ion Engine Propulsion Light Treads Treads Light Treads Leg Carbon-fiber Leg Wheel Overtuned Huge Scrapsphere Hover Unit Combat Airjet Utility X0-1V1's Piety Tracker Device X0-1V1's Piety Tracker Storage Energy Well Processor Advanced Terrain Scan Processor Protection Experimental Weapon Shielding Weapon Companion Sword Energy Gun Medium Laser Energy Cannon Heavy Plasma Cannon Ballistic Gun Assault Rifle Launcher Fusion Bomb Launcher Special Weapon Plasma Cutter Impact Weapon Makeshift Hammer Slashing Weapon Companion Sword Piercing Weapon Lance Special Melee Weapon Improved Datajack Build | -11 -10 -10 -9 -6 -6 -6 -6 -6 -6 -5 -5 -5 ------- Run | Yrd Mat Sub Scr Fac Was Fac Low Low Dat Pro Fac Ext Slots Evolved 10 | . . . . 8 . . . . . . 2 . Power . | . . . . . . . . . . . . . Propulsion 1 | . . . . . . . . . . . 1 . Utility 9 | . . . . 8 . . . . . . 1 . Weapon . | . . . . . . . . . . . . . Parts Attached 51 | 6 1 . 8 11 1 5 4 . . 5 7 3 Power 3 | 1 . . . 1 . 1 . . . . . . Engine 3 | 1 . . . 1 . 1 . . . . . . Core . | . . . . . . . . . . . . . Reactor . | . . . . . . . . . . . . . Propulsion 11 | 2 . . 3 . . . 1 . . 1 4 . Treads 2 | 2 . . . . . . . . . . . . Leg 1 | . . . . . . . . . . 1 . . Wheel 5 | . . . 3 . . . 1 . . . 1 . Hover 3 | . . . . . . . . . . . 3 . Flight . | . . . . . . . . . . . . . Utility 30 | 1 1 . 2 10 . 4 2 . . 4 3 3 Device 19 | . 1 . 1 7 . 3 1 . . 3 2 1 Storage 5 | 1 . . 1 3 . . . . . . . . Processor 5 | . . . . . . 1 1 . . 1 1 1 Hackware . | . . . . . . . . . . . . . Protection 1 | . . . . . . . . . . . . 1 Artifact . | . . . . . . . . . . . . . Weapon 7 | 2 . . 3 . 1 . 1 . . . . . Energy Gun 1 | 1 . . . . . . . . . . . . Energy Cannon . | . . . . . . . . . . . . . Ballistic Gun 1 | 1 . . . . . . . . . . . . Ballistic Cannon . | . . . . . . . . . . . . . Launcher 1 | . . . . . 1 . . . . . . . Special Weapon 1 | . . . 1 . . . . . . . . . Impact Weapon 1 | . . . 1 . . . . . . . . . Slashing Weapon 1 | . . . 1 . . . . . . . . . Piercing Weapon . | . . . . . . . . . . . . . Special Melee Weapon 1 | . . . . . . . 1 . . . . . Unidentified Prototypes 3 | . . . 2 1 . . . . . . . . Corrupted Parts 1 | . . . . . 1 . . . . . . . System Corruption 6 | . . . . . 6 . . . . . . . Parts Lost 18 | . . . . 1 . 1 . . 1 5 . 10 Power 2 | . . . . 1 . . . . 1 . . . Propulsion 3 | . . . . . . . . . . 1 . 2 Utility 12 | . . . . . . 1 . . . 4 . 7 Weapon 1 | . . . . . . . . . . . . 1 Highest Loss Streak 4 | . . . . 1 . 1 . . 1 4 . 4 To Critical Strikes . | . . . . . . . . . . . . . Average Backups 9 | 2 7 7 9 11 12 13 12 11 12 6 4 4 Power . | . 1 1 1 . 1 . . . . . . . Propulsion 1 | 1 4 3 1 2 3 1 1 1 1 . . . Utility 3 | . 1 1 3 2 3 6 7 7 7 3 2 1 Weapon 1 | . 1 1 1 2 3 2 1 1 2 1 1 . Tool/Special . | . . . . . . . . . . . . . Unused Backups 33 | . . 7 8 7 . 5 1 . . 1 1 3 Power 5 | . . 2 1 1 . 1 . . . . . . Propulsion 8 | . . 4 1 1 . . . . . . . 2 Utility 9 | . . . 3 2 . 3 1 . . . . . Weapon 9 | . . 1 2 3 . . . . . 1 1 1 Tool/Special 2 | . . . 1 . . 1 . . . . . . Average Slot Usage (%) 82 | . 98 100 93 61 74 72 85 86 85 75 81 72 Engine 6 | . 14 14 14 1 . 4 6 6 5 . . . Treads 5 | . 28 28 10 . . . . . . . . . Wheel 6 | . . . 16 6 6 5 6 6 6 2 3 . Hover 1 | . . . . . . . . . . . 3 10 Device 25 | . 12 14 14 31 40 30 33 33 33 32 35 27 Storage 13 | . 14 14 14 15 20 17 13 13 13 11 11 9 Processor 7 | . . . . . . 4 11 13 13 16 17 16 Protection 1 | . . . . . . 1 6 6 6 2 . . Energy Gun 2 | . 14 14 4 . . . . . . . . . Ballistic Gun 2 | . 14 14 4 . . . . . . . . . Slashing Weapon 5 | . . . 9 6 6 5 6 6 5 5 5 5 Peak Build Rating 83 | 6 7 8 36 69 69 83 81 81 81 76 78 82 Average Rating 51 | 5 6 7 26 54 62 68 74 74 73 60 67 67 On Entrance 47 | . 6 7 8 29 61 62 83 74 74 69 64 75 Avg Prop Armor Cover (%) 7 | . . . 7 . . . . . . . 6 . Naked Turns . | . . . . . . . . . . . . . Heaviest Build 69 | 12 13 13 31 46 58 61 58 69 65 47 31 34 Greatest Support 40 | 40 40 40 40 32 20 20 20 8 8 15 27 27 Greatest Overweight (x) 8 | . . . 3 2 2 3 7 8 8 7 3 1 Average Overweight (x) 2 | . . . 1 1 2 2 5 7 6 2 1 . Largest Inventory Capacity 15 | 8 8 8 15 15 15 15 15 15 15 15 5 5 Average Capacity 11 | 6 8 8 13 15 15 15 15 15 15 8 5 5 Most Carried 15 | 6 8 8 15 15 15 15 15 15 15 15 5 5 Average Carried 10 | 2 7 7 11 13 14 14 14 14 14 7 4 4 Final Capacity 15 | 8 8 8 15 15 15 15 15 15 15 5 5 5 Final Carried 15 | 6 8 8 15 15 15 15 15 15 15 5 5 4 Scrap Suit Usage (%) 39 | . . . . 100 100 79 90 100 100 24 . . Class Distribution -------------------- 62% | Mutant 20% | Assassin 16% | Infiltrator-Mutant Dominant Class ---------------- Mutant | -10/Materials Mutant | -10/Subcaves Mutant | -9/Scraptown Mutant | -6/Factory Mutant | -6/Waste Mutant | -6/Factory Assassin | -6/Lower Caves Assassin | -6/Lower Caves Assassin | -6/Data Miner Infiltrator-Mutant | -5/Proximity Caves Infiltrator-Mutant | -5/Factory Infiltrator-Mutant | -5/Extension Resources | -11 -10 -10 -9 -6 -6 -6 -6 -6 -6 -5 -5 -5 ----------- Run | Yrd Mat Sub Scr Fac Was Fac Low Low Dat Pro Fac Ext Matter Collected 1985 | 200 91 78 . 97 181 125 211 . . 207 166 629 Remotely . | . . . . . . . . . . . . . Salvage Created 2422 | . 93 299 . . . 375 235 49 76 291 81 923 Parts 112 | . 7 16 . . . 25 5 1 . 16 8 34 Haulers Intercepted . | . . . . . . . . . . . . . Recyclers Shooed . | . . . . . . . . . . . . . Parts Field Recycled . | . . . . . . . . . . . . . Retrieved Matter . | . . . . . . . . . . . . . Parts Self-Destructed 22 | . . 10 . . . . 3 . . 9 . . Prevented 1 | . . . . . . . . . . 1 . . Parts Restored . | . . . . . . . . . . . . . Kills | -11 -10 -10 -9 -6 -6 -6 -6 -6 -6 -5 -5 -5 ------- Run | Yrd Mat Sub Scr Fac Was Fac Low Low Dat Pro Fac Ext Combat Hostiles Destroyed 63 | . 4 7 . . . 15 7 3 4 10 1 12 Melee 25 | . . . . . . 12 . . . . 1 12 Guns 11 | . 4 7 . . . . . . . . . . AOE 27 | . . . . . . 3 7 3 4 10 . . Classes Destroyed 13 | . 2 2 . . . 2 1 1 . 1 1 3 Worker 2 | . . . . . . 1 . . . . 1 . Recycler 2 | . . . . . . . . . . . . 2 Mechanic 1 | . . . . . . . . . . . 1 . Operator 1 | . . . . . . . . . . . . 1 Watcher 1 | . . . . . . . . . . . . 1 Swarmer 31 | . 3 . . . . 14 . . . 9 1 4 Grunt 16 | . 1 3 . . . . 6 2 . . . 4 Brawler 1 | . . . . . . . 1 . . . . . Duelist 1 | . . . . . . . . 1 . . . . Sentry 4 | . . 1 . . . . . . . . . 3 Programmer 1 | . . . . . . 1 . . . . . . Behemoth 2 | . . . . . . . . . . 1 . 1 Enhanced Grunt 4 | . . . . . . . . . 4 . . . Subdweller 3 | . . 3 . . . . . . . . . . Best Kill Streak 6 | . 3 3 . . . 6 4 3 4 5 1 2 Combat Bots Only 6 | . 3 3 . . . 6 4 3 4 5 1 2 Max Kills in Single Turn 5 | . 2 1 . . . 1 2 2 2 5 1 1 Gunslinging 1 | . 1 . . . . . . . . . . . Exploded 5 | . . . . . . 1 2 2 2 5 . . Melee 1 | . . . . . . 1 . . . . 1 1 Uniques/NPCs Destroyed . | . . . . . . . . . . . . . Combat | -11 -10 -10 -9 -6 -6 -6 -6 -6 -6 -5 -5 -5 -------- Run | Yrd Mat Sub Scr Fac Was Fac Low Low Dat Pro Fac Ext Hostile Shots Fired 489 | . 14 41 . 15 1 131 19 7 20 87 . 154 Missed 172 | . 4 15 . 8 1 42 9 1 7 29 . 56 Hits 317 | . 10 26 . 7 . 89 10 6 13 58 . 98 Projectile 317 | . 10 26 . 7 . 89 10 6 13 58 . 98 AOE 3 | . . . . 3 . . . . . . . . Critical Strikes 8 | . . . . . . . . . . 3 . 5 Actively Blocked 1 | . . . . . . . . . . 1 . . Damage Taken 3610 | . 67 318 . 226 16 478 77 52 243 620 10 1503 Core 1047 | . 5 33 . 22 . 49 15 10 72 186 10 645 Absorbed by Shields 1441 | . . . . . 16 498 79 55 245 378 . 170 Redirected to Shielding 155 | . . . . . . . 6 7 18 124 . . Ignored by Resistances 1487 | . 23 92 . 62 9 295 44 29 125 274 . 534 Core Remaining (%) 73 | 100 . . 88 . . . . . . 33 . . Volleys Fired 90 | . 10 21 . . 3 3 5 5 12 23 . 8 Largest 2 | . 2 2 . . 1 1 1 1 1 1 . 1 Hottest 70 | . 70 70 . . 52 52 52 52 52 52 . 52 Shots Fired 120 | . 20 43 . . 3 3 5 5 12 21 . 8 Gun 63 | . 20 43 . . . . . . . . . . Cannon . | . . . . . . . . . . . . . Launcher 57 | . . . . . 3 3 5 5 12 21 . 8 Special . | . . . . . . . . . . . . . Kinetic 32 | . 10 22 . . . . . . . . . . Thermal 31 | . 10 21 . . . . . . . . . . Explosive 57 | . . . . . 3 3 5 5 12 21 . 8 Electromagnetic . | . . . . . . . . . . . . . Robot Hit Streak 26 | . 15 26 . . 19 1 3 2 12 13 . 7 Robot Miss Streak 3 | . 1 1 . . 1 3 1 . . 1 . . Penetration Max . | . . . . . . . . . . . . . Secondary Targets 2 | . 2 . . . . . . . . . . . Max Gunslinging Chain 1 | . 1 . . . . . . . . . . . Shots Hit Robots 169 | . 18 40 . . 2 24 6 2 11 10 3 53 Core Hits 109 | . 6 15 . . . 15 13 7 16 16 2 19 Critical Kills . | . . . . . . . . . . . . . Critical Parts Destroyed . | . . . . . . . . . . . . . Critical Strikes 9 | . 1 4 . . . . . . . . . 4 Burn 5 | . 1 4 . . . . . . . . . . Melee Attacks 130 | . . . . 9 . 43 4 1 1 5 11 56 Impact . | . . . . . . . . . . . . . Slashing 129 | . . . . 9 . 43 3 1 1 5 11 56 Piercing . | . . . . . . . . . . . . . Sneak Attacks 8 | . . . . . . 2 1 . 1 . 2 2 Combat Hostiles 1 | . . . . . . 1 . . . . . . Follow-up Attacks 1 | . . . . . . . . . . . . 1 Damage Inflicted 12218 | . 218 497 . . 936 1275 1319 673 1814 2514 244 2728 Guns 715 | . 218 497 . . . . . . . . . . Cannons . | . . . . . . . . . . . . . Explosions 7304 | . . . . . 936 226 1210 673 1736 2279 . 244 Melee 4199 | . . . . . . 1049 109 . 78 235 244 2484 Ramming . | . . . . . . . . . . . . . Kinetic 340 | . 104 236 . . . . . . . . . . Thermal 375 | . 114 261 . . . . . . . . . . Explosive 7304 | . . . . . 936 226 1210 673 1736 2279 . 244 Electromagnetic . | . . . . . . . . . . . . . Impact . | . . . . . . . . . . . . . Slashing 4199 | . . . . . . 1049 109 . 78 235 244 2484 Piercing . | . . . . . . . . . . . . . Highest Corruption 19 | . . . . 1 14 14 9 . . 19 . . Average Corruption 11 | . . . . 1 7 9 9 . . 19 . . Corruption Purged 5 | . . . . . . 5 . . . . . . Corruption Blocked . | . . . . . . . . . . . . . Effects 74 | . . . . 1 3 34 4 . . 32 . . Message Errors 11 | . . . . . . 4 1 . . 6 . . Matter Fused 22 | . . . . 1 1 8 3 . . 9 . . Heat Flow Errors 12 | . . . . . . 7 . . . 5 . . Energy Discharges 9 | . . . . . 1 7 . . . 1 . . Parts Fused 1 | . . . . . . . . . . 1 . . Data Loss (minor) 8 | . . . . . . 4 . . . 4 . . Data Loss (major) 6 | . . . . . . 4 . . . 2 . . Alerts 2 | . . . . . . . . . . 2 . . Misdirections 1 | . . . . . 1 . . . . . . . Weapon Failures 2 | . . . . . . . . . . 2 . . Overload Shots . | . . . . . . . . . . . . . Overflow Damage 494 | . . . . . 7 64 77 . 29 114 70 133 Projectiles . | . . . . . . . . . . . . . Explosions 119 | . . . . . 7 . 61 . 11 40 . . Melee 375 | . . . . . . 64 16 . 18 74 70 133 Knockbacks . | . . . . . . . . . . . . . Impact . | . . . . . . . . . . . . . Kinetic . | . . . . . . . . . . . . . Secondary . | . . . . . . . . . . . . . Self-Inflicted Damage 126 | . . . . . 32 29 . . . . . 65 Shots 5 | . . . . . 1 1 . . . . . 3 Rammed . | . . . . . . . . . . . . . Targets Rammed . | . . . . . . . . . . . . . Kicked . | . . . . . . . . . . . . . Crushed . | . . . . . . . . . . . . . Highest Temperature 273 | . 63 . . 11 215 193 . . . 166 . 273 Average Temperature 65 | . 23 . . 11 122 88 . . . 71 . 154 Received Heat Transfer 1008 | . 24 99 . 48 . 35 36 22 . 288 . 456 Siege Activations . | . . . . . . . . . . . . . Martial Activations . | . . . . . . . . . . . . . Shielding Activations . | . . . . . . . . . . . . . Robots Disrupted 2 | . . . . . . . 1 . . . . 1 Combat Hostiles 2 | . . . . . . . 1 . . . . 1 Robots Corrupted . | . . . . . . . . . . . . . Combat Hostiles . | . . . . . . . . . . . . . Parts Fried . | . . . . . . . . . . . . . Impact Corruptions . | . . . . . . . . . . . . . Robots Melted . | . . . . . . . . . . . . . Combat Hostiles . | . . . . . . . . . . . . . Parts Melted 2 | . . 1 . . . . . . . . . 1 Heat Transferred 1480 | . 407 1073 . . . . . . . . . . Parts Sabotaged . | . . . . . . . . . . . . . Parts Stolen . | . . . . . . . . . . . . . Parts Stripped . | . . . . . . . . . . . . . Power Chain Reactions . | . . . . . . . . . . . . . Alert | -11 -10 -10 -9 -6 -6 -6 -6 -6 -6 -5 -5 -5 ------- Run | Yrd Mat Sub Scr Fac Was Fac Low Low Dat Pro Fac Ext Maximum Alert Level 1 | . . . . . . 1 . . . . . 1 Low Security (%) 86 | 100 100 . . 100 100 77 . . . . 100 74 Level 1 13 | . . . . . . 22 . . . . . 25 Level 2 . | . . . . . . . . . . . . . Level 3 . | . . . . . . . . . . . . . Level 4 . | . . . . . . . . . . . . . Level 5 . | . . . . . . . . . . . . . High Security . | . . . . . . . . . . . . . Max Security . | . . . . . . . . . . . . . Sterilizations 1 | . . . . . . 1 . . . . . . Peak Influence 327 | . 70 . . 16 28 279 . . . . 42 327 Initial 4 | . . . . . . 4 . . . . . . Average 56 | . 15 . . 1 6 97 . . . . 8 96 Influence Increases 2241 | . 103 80 . 55 28 536 262 70 . 235 123 749 Destroy 0b10 Robot/C 1280 | . 80 80 . . . 380 160 60 . 200 40 280 Destroy 0b10 Robot/NC 40 | . . . . . . 5 . . . 5 10 20 Destroy Leader 162 | . 20 . . . . 60 10 10 . 30 10 22 Allied During Kill 17 | . . . . . . 5 2 . . . 2 8 Trap Triggered on 0b10 10 | . . . . . . . . . . . 10 . Successful Hack 61 | . 3 . . 1 . 18 . . . . 35 4 Disable Machine 18 | . . . . . . 9 . . . . . 9 Destroy Structure 212 | . . . . 9 28 59 . . . . 16 100 Partial Spotted 45 | . . . . 30 . . . . . . . 15 Lose Combat Pursuer 150 | . . . . 15 . . 90 . . . . 45 Miscellaneous 246 | . . . . . . . . . . . . 246 Influence Decreases 2124 | . 103 40 40 55 20 372 408 36 60 235 123 632 Entered New Map 190 | . . . 40 . . 4 78 8 60 . . . Time Decay 1542 | . 103 40 . 49 20 338 310 28 . 185 103 366 Search Patrol Dispatched 100 | . . . . . . . . . . . . 100 Lost Part 160 | . . . . . . 10 . . . 50 . 100 Lost Ally 132 | . . . . 6 . 20 20 . . . 20 66 Squads Dispatched 10 | . 1 . . 3 . 4 . . . . . 2 Investigation 5 | . 1 . . 2 . 1 . . . . . 1 Extermination 2 | . . . . 1 . 1 . . . . . . Reinforcement 2 | . . . . . . 1 . . . . . 1 Assault 1 | . . . . . . 1 . . . . . . Garrison . | . . . . . . . . . . . . . Intercept . | . . . . . . . . . . . . . Searches Triggered 1 | . . . . . . . . . . . . 1 Construction Impeded . | . . . . . . . . . . . . . Haulers Reinforced . | . . . . . . . . . . . . . Active Scanning Responses . | . . . . . . . . . . . . . Cargo Convoy Interrupts . | . . . . . . . . . . . . . Stealth | -11 -10 -10 -9 -6 -6 -6 -6 -6 -6 -5 -5 -5 --------- Run | Yrd Mat Sub Scr Fac Was Fac Low Low Dat Pro Fac Ext Distress Signals 5 | . . . . 1 . 2 . . . . . 2 Communications Jammed . | . . . . . . . . . . . . . Distress Signals . | . . . . . . . . . . . . . Times Spotted 127 | . 6 7 . 5 5 36 13 4 4 11 2 34 Peak Tracking Total 7 | . 3 3 . 2 5 5 6 3 4 5 2 7 Tactical Retreats 22 | . . . . 3 1 8 1 . . . . 9 ECM-based Alert Blocks 30 | . . . . 2 . 16 . . . . . 12 Traps | -11 -10 -10 -9 -6 -6 -6 -6 -6 -6 -5 -5 -5 ------- Run | Yrd Mat Sub Scr Fac Was Fac Low Low Dat Pro Fac Ext Traps Triggered 8 | . . . . 2 . 2 . . . . . 4 Indirectly . | . . . . . . . . . . . . . Trap Hack Attempts . | . . . . . . . . . . . . . Triggered . | . . . . . . . . . . . . . Disarmed . | . . . . . . . . . . . . . Reprogrammed . | . . . . . . . . . . . . . Reused 1 | . . . . . . . . . . . 1 . Traps Extracted . | . . . . . . . . . . . . . Installed 1 | . . . . . . . . . . . 1 . Triggered 1 | . . . . . . . . . . . 1 . Most Traps Carried 2 | . . . 1 1 1 2 1 1 1 1 1 . Machines | -11 -10 -10 -9 -6 -6 -6 -6 -6 -6 -5 -5 -5 ---------- Run | Yrd Mat Sub Scr Fac Was Fac Low Low Dat Pro Fac Ext Machines Disabled 2 | . . . . . . 1 . . . . . 1 Max in Single Turn 1 | . . . . . . 1 . . . . . 1 Garrison Access 3 | . . . . . . 2 . . . . 1 . Machines Repaired . | . . . . . . . . . . . . . Machines Dismantled . | . . . . . . . . . . . . . Machines Sabotaged . | . . . . . . . . . . . . . Overloaded Fab Kills . | . . . . . . . . . . . . . Hacking | -11 -10 -10 -9 -6 -6 -6 -6 -6 -6 -5 -5 -5 --------- Run | Yrd Mat Sub Scr Fac Was Fac Low Low Dat Pro Fac Ext Machines Accessed 35 | . 4 . 2 5 . 9 1 . 4 . 8 2 Terminals 19 | . 4 . . 3 . 7 . . . . 3 2 Fabricators 3 | . . . . . . 1 . . . . 2 . Repair Stations . | . . . . . . . . . . . . . Recycling Units 2 | . . . . 1 . . . . . . 1 . Scanalyzers 2 | . . . . 1 . . . . . . 1 . Garrison Access 2 | . . . . . . 1 . . . . 1 . Total Hacks 102 | . 8 . 3 14 . 18 1 . 30 . 23 5 Successful 67 | . 4 . 3 9 . 10 1 . 30 . 8 2 Failed 35 | . 4 . . 5 . 8 . . . . 15 3 Catastrophic 4 | . 2 . . 1 . 1 . . . . . . Database Lockouts . | . . . . . . . . . . . . . Manual 37 | . 5 . . 7 . 10 . . . . 13 2 Terminals 46 | . 8 . . 6 . 15 . . . . 12 5 Fabricators 6 | . . . . . . 2 . . . . 4 . Repair Stations . | . . . . . . . . . . . . . Recycling Units 2 | . . . . 1 . . . . . . 1 . Scanalyzers 12 | . . . . 7 . . . . . . 5 . Garrison Access 2 | . . . . . . 1 . . . . 1 . Terminal Hacks 43 | . 2 . 3 . . 4 1 . 30 . 2 1 Record 13 | . . . 1 . . 1 . . 11 . . . Part Schematic 8 | . . . . . . . . . 8 . . . Robot Schematic 8 | . . . . . . . . . 8 . . . Prototype ID Bank 3 | . . . . . . . . . 3 . . . Open Door 2 | . . . 1 . . . 1 . . . . . Branch Access Points 2 | . . . . . . 1 . . . . 1 . Emergency Access Points 1 | . . . . . . 1 . . . . . . Locate Traps 1 | . . . . . . . . . . . 1 . Recall Reinforcements 1 | . . . . . . . . . . . . 1 Zone Layout 3 | . 2 . . . . 1 . . . . . . Proto ID Catalog 1 | . . . 1 . . . . . . . . . Fabricator Hacks 1 | . . . . . . 1 . . . . . . Network Status 1 | . . . . . . 1 . . . . . . Repair Station Hacks . | . . . . . . . . . . . . . Recycling Unit Hacks . | . . . . . . . . . . . . . Scanalyzer 8 | . . . . 6 . . . . . . 2 . Insert Component 3 | . . . . 3 . . . . . . . . Analyze 3 | . . . . 3 . . . . . . . . Retrieve Study 2 | . . . . . . . . . . . 2 . Garrison Access Hacks 2 | . . . . . . 1 . . . . 1 . Seal Access 2 | . . . . . . 1 . . . . 1 . Unauthorized Hacks 13 | . 2 . . 3 . 4 . . . . 3 1 Terminals 10 | . 2 . . 2 . 3 . . . . 2 1 Assimilate 1 | . . . . . . 1 . . . . . . Botnet 9 | . 2 . . 2 . 2 . . . . 2 1 Fabricators 2 | . . . . . . 1 . . . . 1 . Fabnet 2 | . . . . . . 1 . . . . 1 . Repair Stations . | . . . . . . . . . . . . . Recycling Units 1 | . . . . 1 . . . . . . . . Fedlink 1 | . . . . 1 . . . . . . . . Scanalyzers . | . . . . . . . . . . . . . Garrison Access . | . . . . . . . . . . . . . Data Cores Recovered . | . . . . . . . . . . . . . Used . | . . . . . . . . . . . . . Hacking Detections 21 | . 2 . . 3 . 7 . . . . 7 2 Full Trace Events 2 | . 1 . . . . 1 . . . . . . Feedback Events . | . . . . . . . . . . . . . Feedback Blocked . | . . . . . . . . . . . . . Robot Schematics Acquired 8 | . . . . . . . . . 8 . . . Robots Built . | . . . . . . . . . . . . . Authchips . | . . . . . . . . . . . . . Time . | . . . . . . . . . . . . . Total Robot Build Rating . | . . . . . . . . . . . . . Part Schematics Acquired 10 | . . . . 2 . . . . 8 . . . Parts Built . | . . . . . . . . . . . . . Authchips . | . . . . . . . . . . . . . Time . | . . . . . . . . . . . . . Total Part Build Rating . | . . . . . . . . . . . . . Part Studies Acquired 2 | . . . . . . . . . . . 2 . Parts Repaired . | . . . . . . . . . . . . . Time . | . . . . . . . . . . . . . Parts Recycled . | . . . . . . . . . . . . . Recycled Matter . | . . . . . . . . . . . . . Retrieved Matter . | . . . . . . . . . . . . . Retrieved Components . | . . . . . . . . . . . . . Parts Scanalyzed 2 | . . . . 2 . . . . . . . . Part Schematics Acquired 2 | . . . . 2 . . . . . . . . Parts Damaged . | . . . . . . . . . . . . . Bothacking | -11 -10 -10 -9 -6 -6 -6 -6 -6 -6 -5 -5 -5 ------------ Run | Yrd Mat Sub Scr Fac Was Fac Low Low Dat Pro Fac Ext Used RIF Installer . | . . . . . . . . . . . . . Robots Hacked . | . . . . . . . . . . . . . Non-combat . | . . . . . . . . . . . . . Combat . | . . . . . . . . . . . . . Robot Hacks Applied . | . . . . . . . . . . . . . Relay Couplers Released 2 | . . . . . . 2 . . . . . . Machine Destruction 2 | . . . . . . 2 . . . . . . Fabnet Peak Effective % . | . . . . . . . . . . . . . Robots Rewired 2 | . . . . . . . 1 . . . 1 . Allies Hacked . | . . . . . . . . . . . . . Hacks Repelled . | . . . . . . . . . . . . . Allies | -11 -10 -10 -9 -6 -6 -6 -6 -6 -6 -5 -5 -5 -------- Run | Yrd Mat Sub Scr Fac Was Fac Low Low Dat Pro Fac Ext Total Allies 11 | . . . 1 . 1 2 1 . . 1 1 4 Largest Group 4 | . . . 1 1 1 2 1 . . 1 2 4 Highest-Rated Group 144 | . . . 47 47 144 60 34 . . 44 74 107 Highest-Rated Ally 144 | . . . 47 47 144 50 34 . . 44 44 31 Initial UFD Resources 35 | . . . . 23 33 33 33 33 33 35 35 35 Total Orders 2 | . . . 2 . . . . . . . . . STAY 1 | . . . 1 . . . . . . . . . FOLLOW 1 | . . . 1 . . . . . . . . . Ally Attacks 53 | . . . . 7 4 25 5 . . . 5 7 Total Damage 982 | . . . . 231 157 246 109 . . . 117 122 Kills 8 | . . . . . . 4 1 . . . 1 2 Allies Corrupted . | . . . . . . . . . . . . . Allies Melted . | . . . . . . . . . . . . . X0-1V1 Amusement Gains 245 | . 12 . . 25 . 73 . . 75 . . 60 Good Acts 52 | . . 8 . 2 4 15 7 3 . 7 . 6 Bad Acts 31 | . . 3 . 3 2 1 2 . . 6 1 13 Intel | -11 -10 -10 -9 -6 -6 -6 -6 -6 -6 -5 -5 -5 ------- Run | Yrd Mat Sub Scr Fac Was Fac Low Low Dat Pro Fac Ext Active Infowar (turns) 6553 | . 310 550 47 689 116 989 635 614 320 817 399 1067 Sensors 3614 | . . . . . . . 612 614 320 817 399 852 Terrain 4504 | . 310 550 47 689 116 989 635 614 320 234 . . Seismic 669 | . . . . 553 116 . . . . . . . Cloaking 1448 | . . . . . . . . . . 372 399 677 ECM 2050 | . . . . 413 116 989 23 . . 6 . 503 Robot Analysis Total 154 | . . . . . . . . . 154 . . . Derelict Logs Recovered 4 | . . . . . . . 2 1 . 1 . . Drone Launches 1 | . . . . . . . . . . . . 1 Drone Recoveries . | . . . . . . . . . . . . . Exploration | -11 -10 -10 -9 -6 -6 -6 -6 -6 -6 -5 -5 -5 ------------- Run | Yrd Mat Sub Scr Fac Was Fac Low Low Dat Pro Fac Ext Turns Passed 8482 | 81 338 550 1861 693 116 989 635 614 320 819 399 1067 Spaces Moved 5965 | 45 125 289 1427 722 115 864 435 370 104 410 341 718 Core 43 | 4 . . . . . . . . . 39 . . Treads 899 | 41 125 289 444 . . . . . . . . . Legs 219 | . . . . . . . . . . 204 15 . Wheels 3969 | . . . 983 722 115 864 435 370 104 167 209 . Hover 835 | . . . . . . . . . . . 117 718 Flight . | . . . . . . . . . . . . . Fastest Speed 50 | 50 160 160 80 70 90 90 90 140 120 110 61 77 Average Speed 114 | 150 160 160 126 80 90 91 127 140 135 169 102 78 Slowest Speed 400 | 160 160 160 160 90 90 100 140 150 150 400 190 150 Overloaded Moves . | . . . . . . . . . . . . . Propulsion Burnouts . | . . . . . . . . . . . . . Robots Hopped . | . . . . . . . . . . . . . Potential Cave-ins 8 | . . . . . . . . . . . . 8 Cave-ins Triggered . | . . . . . . . . . . . . . Exploration Rate (%) 44 | 3 33 29 63 16 88 24 71 59 78 52 8 55 Regions Visited 12 Branch Regions 7 Pre-discovered Areas 31 | . . . . . . . 2 . 29 . . . Known Exits Taken 6 | . . . . . . 1 1 1 1 1 1 . Unknown Exits Taken 4 | 1 1 1 1 . . . . . . . . . Scrap Searched 5 | . . . . . . . 2 3 . . . . Spaces Dug 33 | . . . . 9 . 14 . 1 . 1 8 . Terrain Destroyed 681 | . . . . 9 53 62 83 87 73 84 8 222 Melee 33 | . . . . 9 . 14 . 1 . 1 8 . Projectile . | . . . . . . . . . . . . . AOE 648 | . . . . . 53 48 83 86 73 83 . 222 Terrain Rammed . | . . . . . . . . . . . . . Walls Destroyed . | . . . . . . . . . . . . . Machines Disabled . | . . . . . . . . . . . . . Actions | -11 -10 -10 -9 -6 -6 -6 -6 -6 -6 -5 -5 -5 --------- Run | Yrd Mat Sub Scr Fac Was Fac Low Low Dat Pro Fac Ext Total 7329 | 56 243 340 1486 823 124 1002 507 460 270 504 375 1139 Wait 886 | . 106 17 11 63 4 56 50 83 150 40 6 300 Move 5954 | 44 124 288 1426 722 114 863 434 369 103 409 340 718 Hop . | . . . . . . . . . . . . . Pick Up 61 | 6 2 7 19 4 . 13 2 . . 3 . 5 Fast Attach 42 | 6 1 . 3 8 1 3 . . . 8 7 5 Attach 26 | . . . 3 4 . 1 5 1 2 6 . 4 Detach 23 | . . . 2 5 1 1 3 1 2 5 1 2 Swap 8 | . . . 3 2 . 2 1 . . . . . Drop 66 | . . 7 19 6 1 17 3 . . 5 6 2 Fire 90 | . 10 21 . . 3 3 5 5 12 23 . 8 Melee 127 | . . . . 9 . 43 4 1 1 5 11 53 Ram . | . . . . . . . . . . . . . Kick . | . . . . . . . . . . . . . Crush . | . . . . . . . . . . . . . Escape Stasis 39 | . . . . . . . . . . . . 39 Rewire 6 | . . . . . . . . . . . 3 3 Trap 1 | . . . . . . . . . . . 1 . Miscellaneous . | . . . . . . . . . . . . . Route ------- -11/Scrapyard -10/Materials (discovered 2 exits: [*Mat] / [*Sub]) -10/Subcaves (discovered 2 exits: Rec / *Scr) -9/Scraptown -6/Factory -6/Waste -6/Factory (discovered 5 exits: Fac x3 / *Low x2) -6/Lower Caves -6/Lower Caves -6/Data Miner -5/Proximity Caves -5/Factory (discovered 4 exits: Upp x2 / *Ext x2) -5/Extension (discovered 1 exit: Cet) History --------- Turn | Location | Event 3 | -11/Scrapyard | Discovered new exit (range 15) 82 | -11/Scrapyard | Entered Materials 226 | -10/Materials | Discovered new exit (range 16) 302 | -10/Materials | Build established: Mutant 406 | -10/Materials | Discovered new exit (range 9) 419 | -10/Materials | Prayed at D.C.S.S. Altar Unit 420 | -10/Materials | Entered Subcaves 421 | -10/Subcaves | Approached by a straggling Scientist 685 | -10/Subcaves | Ambushed by Subdwellers from Twisted Machinery 745 | -10/Subcaves | Identified exit to Recycling 745 | -10/Subcaves | X0-1V1 revealed exit location to -9/Recycling 820 | -10/Subcaves | Energy generation permanently improved by X0-1V1 (+10; -100 max core) 903 | -10/Subcaves | X0-1V1 activates XOMVISION 928 | -10/Subcaves | X0-1V1 sent hostile G-34 Mercenary (x3) 938 | -10/Subcaves | Scientist uncovered a shortcut to Scraptown 970 | -10/Subcaves | Entered Scraptown 1139 | -9/Scraptown | Visited UFD Registry 1139 | -9/Scraptown | Registered with UFD as "Electroripper" 1359 | -9/Scraptown | Visited Junk Repository 1489 | -9/Scraptown | Visited Research Penetration Think Tank 1537 | -9/Scraptown | Visited Sword Containment 1554 | -9/Scraptown | Found Prototype Slashing Weapon 1554 | -9/Scraptown | Identified Companion Sword 1591 | -9/Scraptown | Visited Infowarlord's Domain 1612 | -9/Scraptown | Found Exp. Terrain Scanner 1646 | -9/Scraptown | Visited Science Testing Area 1674 | -9/Scraptown | Visited Modified Component R&D 1753 | -9/Scraptown | Visited Science Guys 1784 | -9/Scraptown | Visited Botcube Research 1790 | -9/Scraptown | Found Botcube 1808 | -9/Scraptown | Visited Curators Association 2012 | -9/Scraptown | Found Scrap Suit 2161 | -9/Scraptown | Botcube activated 2173 | -9/Scraptown | Botcube completed mutation into legged form, armed with 1 gun, 1 cannon 2214 | -9/Scraptown | Found Scrap Suit 2370 | -9/Scraptown | Visited Symbiants 2388 | -9/Scraptown | Visited Cave Peace 2401 | -9/Scraptown | Visited Assassins FH 2413 | -9/Scraptown | Visited Comm Corps 2487 | -9/Scraptown | Visited SPCMW 2509 | -9/Scraptown | Visited IN-MT5's Study 2522 | -9/Scraptown | Visited TADAMA 2715 | -9/Scraptown | Discovered new exit (range 3) 2775 | -9/Scraptown | Met Optimus 2775 | -9/Scraptown | Accepted into 0bPrime 2831 | -9/Scraptown | Entered Factory 2831 | -6/Factory | Accompanied by 1 ally 2831 | -6/Factory | Evolved 8 slots: Utility x8 2857 | -6/Factory | Energy capacity permanently improved by X0-1V1 (+200; -100 max core) 2858 | -6/Factory | Loaded intel: 8 recycling unit locations 3107 | -6/Factory | Discovered new exit (range 10) 3190 | -6/Factory | Found Botcube 3524 | -6/Factory | Sucked down chute 3524 | -6/Factory | Entered Waste 3539 | -6/Waste | EMP discharged 3543 | -6/Waste | Sensors blinded by X0-1V1 3556 | -6/Waste | Spotted C-40 Crusher 3565 | -6/Waste | Spotted C-40 Crusher 3589 | -6/Waste | Found Corrupted Fusion Bomb Launcher 3590 | -6/Waste | System corruption reached 10% 3603 | -6/Waste | Spotted C-40 Crusher 3622 | -6/Waste | Spotted C-40 Crusher 3623 | -6/Waste | Spotted C-40 Crusher 3624 | -6/Waste | Discovered new exit (range 14) 3631 | -6/Waste | X0-1V1 sent allied B-90 Cyclops (x1) 3639 | -6/Waste | EMP discharged 3640 | -6/Waste | Entered Factory 3717 | -6/Factory | Heat dissipation permanently improved by X0-1V1 (+30; -150 max core) 3752 | -6/Factory | X0-1V1 released a cloud of subatomizers 3761 | -6/Factory | Weapon slot count temporarily expanded by X0-1V1 (+4) 4039 | -6/Factory | Identified exit to Factory 4039 | -6/Factory | X0-1V1 revealed exit location to -5/Factory 4159 | -6/Factory | Botcube activated 4171 | -6/Factory | Botcube completed mutation into hovering form, armed with 2 guns 4220 | -6/Factory | Identified exit to Lower Caves 4252 | -6/Factory | X0-1V1 revealed exit location to -5/Factory 4296 | -6/Factory | X0-1V1 activates XOMVISION 4420 | -6/Factory | X0-1V1 foreshadows a heat wave 4453 | -6/Factory | X0-1V1 sent you to a vault 4483 | -6/Factory | X0-1V1 revealed exit location to -5/Factory 4491 | -6/Factory | Sterilization system engaged 4491 | -6/Factory | Non-combat units ordered to evacuate 4579 | -6/Factory | Ambient heat levels rising (+10) 4591 | -6/Factory | Combat units ordered to evacuate 4617 | -6/Factory | Found Botcube 4629 | -6/Factory | Entered Lower Caves 4727 | -6/Lower Caves | X0-1V1 mutated your Propulsion slot to Utility slot 4969 | -6/Lower Caves | Build established: Assassin 5075 | -6/Lower Caves | X0-1V1 activates XOMVISION 5235 | -6/Lower Caves | Discovered new exit (range 18) 5263 | -6/Lower Caves | Identified exit to Lower Caves 5264 | -6/Lower Caves | Entered another Lower Caves area 5398 | -6/Lower Caves | Encountered a Warlord checkpoint 5578 | -6/Lower Caves | Learned Factory stockpile data 5581 | -6/Lower Caves | Spotted B-75 Beast 5798 | -6/Lower Caves | Identified exit to Data Miner 5798 | -6/Lower Caves | X0-1V1 revealed exit location to -6/Data Miner 5878 | -6/Lower Caves | Entered Data Miner 5878 | -6/Data Miner | Discovered new exit (range 6) 5887 | -6/Data Miner | Identified exit to Proximity Caves 5906 | -6/Data Miner | Met Data Miner 6088 | -6/Data Miner | Learned location of Section 7 (-2) 6088 | -6/Data Miner | Acquired the access code to Warlord's prototype stash 6110 | -6/Data Miner | Received God Mode back door access code from Data Miner 6127 | -6/Data Miner | Interfaced with the Data Conduit 6198 | -6/Data Miner | Entered Proximity Caves 6315 | -5/Proximity Caves | Spotted B-75 Beast 6399 | -5/Proximity Caves | X0-1V1 sent you into danger 6432 | -5/Proximity Caves | X0-1V1 revealed exit location to -5/Factory 6462 | -5/Proximity Caves | Core integrity fell below 50% 6496 | -5/Proximity Caves | Destroyed B-75 Beast 6498 | -5/Proximity Caves | Lost 4 parts (1n3u) 6717 | -5/Proximity Caves | Botcube activated 6723 | -5/Proximity Caves | Botcube completed mutation into wheeled form, armed with 1 melee weapon 6941 | -5/Proximity Caves | Build established: Infiltrator-Mutant 7017 | -5/Proximity Caves | Entered Factory 7017 | -5/Factory | Accompanied by 1 ally 7017 | -5/Factory | Evolved 2 slots: Propulsion x1, Utility x1 7019 | -5/Factory | Loaded intel: 310 machine locations 7059 | -5/Factory | Identified exit to Upper Caves 7059 | -5/Factory | Identified exit to Extension 7416 | -5/Factory | Entered Extension 7417 | -5/Extension | Loaded intel: 40 machine locations 7422 | -5/Extension | X0-1V1 dreamt of freedom 7425 | -5/Extension | Rescued a captive Derelict 7426 | -5/Extension | Rescued a captive Derelict 7428 | -5/Extension | Rescued a captive Derelict 7432 | -5/Extension | Disrupted transfer network 7434 | -5/Extension | Rescued a captive Derelict 7436 | -5/Extension | Rescued a captive Derelict 7438 | -5/Extension | Rescued a captive Derelict 7438 | -5/Extension | Rescued a captive Derelict 7443 | -5/Extension | Rescued a captive Derelict 7443 | -5/Extension | Rescued a captive Derelict 7444 | -5/Extension | Rescued a captive Derelict 7447 | -5/Extension | Rescued a captive Derelict 7448 | -5/Extension | Rescued a captive Derelict 7456 | -5/Extension | Rescued a captive Derelict 7627 | -5/Extension | Spotted B-75 Beast 7673 | -5/Extension | Lost 5 allies 7769 | -5/Extension | Identified exit to Cetus 7769 | -5/Extension | X0-1V1 revealed exit location to -5/Cetus 8040 | -5/Extension | X0-1V1 added 0b10 threat records associated with you (major) 8046 | -5/Extension | Sensors blinded by X0-1V1 8241 | -5/Extension | Spotted B-75 Beast 8245 | -5/Extension | Weapon slot count temporarily expanded by X0-1V1 (+3) 8246 | -5/Extension | Extracted ID and sensor layout for unrecognized location from A7's data core 8296 | -5/Extension | Core integrity fell below 50% 8315 | -5/Extension | Destroyed B-75 Beast 8316 | -5/Extension | Search patrols dispatched 8338 | -5/Extension | Lost 4 parts (4u) 8365 | -5/Extension | Build established: Mutant 8460 | -5/Extension | Core integrity fell below 20% 8483 | -5/Extension | Destroyed by G-50 Soldier with Heavy Laser Last Messages --------------- 08466_ X0-1V1: "I know that drunk sailor look when I see it." 08468_ Destroyed Carbon-fiber Leg. 08468_ G-67 Veteran overheating. 08473_ G-50 Soldier destroyed. 08473_ Companion Sword surprise attacks G-50 Soldier. 08474_ Cmb. Airjet+ destroyed. 08477_ G-67 Veteran overheating. 08478_ G-67 Veteran heat damages Field Laser. 08478_ G-67 Veteran overheating. 08479_ G-67 Veteran heat spikes uncontrollably. 08479_ G-67 Veteran overheating. 08479_ Destroyed Field Laser. 08479_ Adv. Heat Sink melted. 08479_ G-67 Veteran destroyed. 08479_ Critical hit (Burn: +37). 08483_ Movement behavior is fully back under control. 08483_ X0-1V1 howls with laughter! Map ----- +----------------------------------------------------+ | | | | | | | | | | | | | | | | | | | | | | | | | | | | | | | ?????????????????????????????????????? | | ?????????????????????????????????????? | | ?????????????????????????????????????? | | ?????????????????????????????????????? | | ??????????????????????########???????? | | ??????????????????????# ] #???????? | | ??????########????????# #???????? | | ??##### #????????# bh/ #???????? | | ### #= [ #????????# l/ #???????? | | + #????????#*%//[ #???????? | | ### #! ! #????????# [@gg #???????? | | ??## ## #????????####g###???????? | | ???# ##=! #??????????# *g#####????? | | ???# ##+######??????????# #????? | | ???# #???????????????# ### #????? | | #### ##################+##?# #????? | | + #?# #????? | | ################### =! ]#?# #????? | | ??????????????????# ! #?# #????? | | ??????????????????# = #?# #????? | | ??????????????????###########?# #????? | | ??????????????????????????????# #????? | | ??????????????????????????????# #????? | | ??????????????????????????????? ?????? | | ??????????????????????????????? ?????? | | ??????????????????????????????? ?????? | | ???????????????????????????????%?????? | | ??????????????????????????????? ?????? | | ??????????????????????????????? ?????? | | ??????????????????????????????? ?????? | | ?????????????????????????????????????? | | ?????????????????????????????????????? | | ?????????????????????????????????????? | | ?????????????????????????????????????? | | ?????????????????????????????????????? | +----------------------------------------------------+ Best States ------------- Heat Dissipation 125 Energy Generation 50 Energy Capacity 2350 Matter Stores 900 Matter Capacity 900 Sight Range 22 Robot Scan Range 15 Terrain Scan Range 30 Terrain Scan Density 210 ECM Strength 1 Cloak Strength 2 Additional Mass Support 12 Armor Coverage 150 Resistance: KI 63 Resistance: TH 20 Resistance: EX 20 Resistance: EM 20 Resistance: I 20 Resistance: S 20 Resistance: P 20 Weapon Shielding 90 Evasion (%) 52 Melee Accuracy 13 Recoil Reduction 2 Offensive Hacking 10 Item Schematics ----------------- Ovr. Scrapsphere | -6/Factory | Scanalyzed CPS Tube | -6/Factory | Scanalyzed Combat Drone Bay | -6/Data Miner | Free Lgt. Regenerative Plating | -6/Data Miner | Free Enh. Flexi-carbon Leg | -6/Data Miner | Free Imp. Thermal Defense Suite | -6/Data Miner | Free Plasma Sword | -6/Data Miner | Free Adv. Medium Treads | -6/Data Miner | Free Adv. Coolant Injector | -6/Data Miner | Free Matter Neutralizer | -6/Data Miner | Free Robot Schematics ------------------ L-41 Fighter | -6/Data Miner | Free Y-64 Sentinel | -6/Data Miner | Free R-10 Processor | -6/Data Miner | Free A-15 Conveyor | -6/Data Miner | Free A-27 Freighter | -6/Data Miner | Free M-22 Extractor | -6/Data Miner | Free H-77 Assassin | -6/Data Miner | Free O-32 Director | -6/Data Miner | Free Fabricated ------------ Nothing Repaired ---------- Nothing Studied --------- Cmb. Airjet | -5/Factory | Hacked Wheel | -5/Factory | Hacked Alien Tech Used ----------------- None Achievements -------------- Into The Furnace Nice Directions, Buddy Challenges ------------ None Game ------ Seed GuidedBiomechanicalAxe Manual? 0 Play Time 01:42:20 Cumulative 314.0 hours Start 2026.08.18 @ 20:57:20 End 2026.08.18 @ 23:13:56 Sessions 3 Manual Loads 0 Difficulty Adventurer Special Mode None Game No. 96 Rogue 69 Adventurer 27 Explorer 0 Win Type - Total 18 Types 12/1/2/1/1/0/0/0/0/1 Lore% 73 Gallery% 65 Achievement% 60 Wizard Run 0 Options --------- Layout 1 ASCII 0 Keyboard 0 Movement Numpad Keybinds 1 Fullscreen 1 Font 24/Smallcaps Map View 50x35 Zoom Use 0% Tactical HUD 1 Map Filters NONE Filters NONE Steam 1 RUN: fe3a4145-d4e4-4c46-96d4-f2326f559349